bitfinex/quotes_BTCUSD_20250215
["timestamp","ask_amount","ask_price","bid_price","bid_amount"]
[1739604585112,0.00022366,97451.0,97450.0,2.93922865]
[1739604585549,0.00022366,97451.0,97450.0,2.94622865]
[1739604586710,0.00022366,97451.0,97450.0,2.93922865]
[1739604587073,0.00022366,97451.0,97450.0,2.94622865]
[1739604587832,0.00022366,97451.0,97450.0,3.27092865]
[1739604589454,0.00022366,97451.0,97450.0,1.67852865]
[1739604589662,0.00022366,97451.0,97450.0,1.62102865]
[1739604590244,0.00022366,97451.0,97450.0,1.27492865]
[1739604593921,0.00022366,97451.0,97450.0,0.90622865]
[1739604594120,0.00022366,97451.0,97450.0,4.81072865]
[1739604594523,0.00022366,97451.0,97450.0,3.59262865]
[1739604594743,0.00022366,97451.0,97450.0,3.33432865]
[1739604595282,0.00022366,97451.0,97450.0,3.28442865]
[1739604604677,0.00022366,97451.0,97450.0,0.85632865]
[1739604605067,0.00022366,97451.0,97450.0,4.47672865]
[1739604610241,0.00022366,97451.0,97450.0,2.65122865]
[1739604611053,0.00022366,97451.0,97450.0,2.30242865]
[1739604611256,0.00022366,97451.0,97450.0,0.76812865]
[1739604612427,0.12662366,97451.0,97450.0,0.59512865]
[1739604612588,0.12662366,97451.0,97450.0,0.3387]
[1739604612993,0.12662366,97451.0,97450.0,0.4887]
[1739604613200,0.12662366,97451.0,97450.0,0.014]
[1739604613863,0.12662366,97451.0,97450.0,0.007]
[1739604614084,0.12662366,97451.0,97450.0,0.014]
[1739604614279,0.12662366,97451.0,97450.0,0.007]
[1739604614470,0.153925,97450.0,97449.0,0.0001065]
[1739604614667,0.280325,97450.0,97449.0,0.0001065]
[1739604614873,0.38282865,97450.0,97449.0,0.0001065]
[1739604615069,0.1264,97449.0,97448.0,0.0001065]
[1739604615244,0.280342,97439.0,97434.0,0.0001065]
[1739604615446,0.280342,97439.0,97438.0,0.00015568]
[1739604616468,0.280342,97439.0,97438.0,0.00715568]
[1739604616883,0.280342,97439.0,97438.0,0.01315568]
[1739604618137,0.280342,97439.0,97438.0,0.00615568]
[1739604618631,0.280342,97439.0,97438.0,0.01215568]
[1739604619296,0.1264,97439.0,97438.0,0.01215568]
[1739604619501,0.1264,97439.0,97438.0,0.16215568]
[1739604620768,0.0474,97439.0,97438.0,0.16215568]
[1739604621402,0.1269,97446.0,97438.0,0.01215568]
[1739604621557,0.1269,97446.0,97441.0,0.153938]
[1739604621757,0.1269,97446.0,97438.0,0.01215568]
[1739604621997,0.1269,97446.0,97444.0,0.15]
[1739604623493,0.1269,97446.0,97444.0,0.004]
[1739604624416,0.1269,97446.0,97444.0,0.008]
[1739604630075,0.1269,97446.0,97445.0,0.15]
[1739604630273,0.0479,97446.0,97445.0,0.15]
[1739604630844,0.00022366,97448.0,97447.0,0.15]
[1739604632315,0.00022366,97448.0,97447.0,0.153]
[1739604632878,0.00022366,97448.0,97447.0,0.156]
[1739604635331,0.00022366,97448.0,97447.0,0.1561065]
[1739604635982,0.00022366,97448.0,97447.0,0.1791065]
[1739604636808,0.00022366,97448.0,97447.0,0.1761065]
[1739604637283,0.00022366,97448.0,97447.0,0.1821065]
[1739604637532,0.00022366,97448.0,97447.0,0.28461015]
[1739604637748,0.00022366,97448.0,97447.0,0.27861015]
[1739604638082,0.00022366,97448.0,97447.0,0.28561015]
[1739604638485,0.00022366,97448.0,97447.0,0.27561015]
[1739604638895,0.00022366,97448.0,97447.0,0.28261015]
[1739604639093,0.00022366,97448.0,97447.0,0.27561015]
[1739604639564,0.00022366,97448.0,97447.0,0.28261015]
[1739604639973,0.00022366,97448.0,97447.0,0.29697144]
[1739604654388,0.00022366,97448.0,97447.0,0.31612865]
[1739604657569,0.00022366,97448.0,97447.0,0.30876736]
[1739604670687,0.00022366,97451.0,97450.0,0.303925]
[1739604670834,0.00022366,97451.0,97450.0,0.42942865]
[1739604671450,0.00022366,97451.0,97450.0,0.44858586]
[1739604672518,0.00022366,97451.0,97450.0,0.46258586]
[1739604672686,0.00022366,97451.0,97450.0,0.4699849]
[1739604674380,0.00022366,97451.0,97450.0,0.46258586]
[1739604683002,0.00022366,97451.0,97450.0,0.36008221]
[1739604683642,0.08342366,97451.0,97450.0,0.33708221]
[1739604684962,0.00022366,97451.0,97450.0,0.33708221]
[1739604695587,0.00022366,97451.0,97450.0,0.317925]
[1739604713832,0.00013236,97452.0,97451.0,0.15027634]
[1739604717447,0.00013236,97452.0,97451.0,0.16427634]
[1739604720737,0.00013236,97452.0,97451.0,0.18727634]
[1739604722646,0.00013236,97452.0,97451.0,0.28977999]
[1739604731143,0.00013236,97452.0,97451.0,0.28988649]
[1739604735836,0.00022366,97465.0,97452.0,0.02336764]
[1739604736043,0.00022366,97465.0,97463.0,0.15]
[1739604736767,0.00022366,97465.0,97463.0,0.303903]
[1739604737202,0.00022366,97465.0,97463.0,0.307903]
[1739604738695,0.00022366,97465.0,97463.0,0.312903]
[1739604747279,0.00022366,97465.0,97463.0,0.009]
[1739604748188,0.00022366,97465.0,97464.0,0.15]
[1739604750582,0.00022366,97465.0,97464.0,0.158]
[1739604753096,0.00022366,97465.0,97464.0,0.008]
[1739604755862,0.27712466,97465.0,97464.0,0.008]
[1739604756940,0.27712466,97465.0,97464.0,0.005]
[1739604757293,0.27712466,97465.0,97464.0,0.003]
[1739604757495,0.153913,97458.0,97449.0,0.173]
[1739604757700,0.153913,97458.0,97449.0,0.326925]
[1739604758097,0.153915,97457.0,97449.0,0.173]
[1739604758892,0.153915,97457.0,97452.0,0.0041065]
[1739604759916,0.153915,97457.0,97452.0,0.0091065]
[1739604760122,0.153915,97457.0,97452.0,0.0051065]
[1739604760292,0.153915,97457.0,97452.0,0.0001065]
[1739604760520,0.153915,97457.0,97452.0,0.0041065]
[1739604760705,0.153915,97457.0,97452.0,0.0091065]
[1739604761129,0.205212,97461.0,97452.0,0.0091065]
[1739604761531,0.153912,97458.0,97452.0,0.0091065]
[1739604761906,0.205203,97464.0,97452.0,0.0091065]
[1739604762105,0.153914,97457.0,97452.0,0.0091065]
[1739604762708,0.153913,97458.0,97452.0,0.0041065]
[1739604762987,0.153913,97458.0,97452.0,0.0091065]
[1739604763191,0.15392,97453.0,97452.0,0.0091065]
[1739604763393,0.38402365,97453.0,97452.0,0.0091065]
[1739604763594,0.38402365,97453.0,97452.0,0.0041065]
[1739604763595,0.41600476,97453.0,97452.0,0.0041065]
[1739604763829,0.41600476,97453.0,97452.0,0.0051065]
[1739604763971,0.41600476,97453.0,97452.0,0.0091065]
[1739604764181,0.41600476,97453.0,97452.0,0.0041065]
[1739604764389,0.41600476,97453.0,97452.0,0.0001065]
[1739604764564,0.41600476,97453.0,97452.0,0.0011065]
[1739604764766,0.41600476,97453.0,97452.0,0.0021065]
[1739604765017,0.41600476,97453.0,97452.0,0.0011065]
[1739604765414,0.38402365,97453.0,97452.0,0.0021065]
[1739604765925,0.38402365,97453.0,97452.0,0.0011065]
[1739604766315,0.38402365,97453.0,97452.0,0.0021065]
[1739604769058,0.70722365,97453.0,97452.0,0.0021065]
[1739604781771,0.70744731,97453.0,97452.0,0.0021065]
[1739604790492,0.73936699,97453.0,97452.0,0.0021065]
[1739604797136,0.73936699,97453.0,97452.0,0.0011065]
[1739604797580,0.73936699,97453.0,97452.0,0.00074781]
[1739604797937,0.73936699,97453.0,97452.0,0.00174781]
[1739604803757,0.83018069,97453.0,97452.0,0.00174781]
[1739604804259,0.73936699,97453.0,97452.0,0.00174781]
[1739604804430,0.73936699,97453.0,97452.0,0.00185431]
[1739604804812,0.83141926,97453.0,97452.0,0.00185431]
[1739604810018,0.73936699,97453.0,97452.0,0.00185431]
[1739604812433,0.01,97452.0,97451.0,1.5e-07]
[1739604812626,0.49411007,97452.0,97451.0,1.5e-07]
[1739604813033,0.41722333,97452.0,97451.0,1.5e-07]
[1739604813565,0.41722333,97452.0,97451.0,0.00100015]
[1739604813566,0.42422333,97452.0,97451.0,0.00100015]
[1739604814003,0.41722333,97452.0,97451.0,1.5e-07]
[1739604814204,0.42422333,97452.0,97451.0,0.00100015]
[1739604814374,0.43122333,97452.0,97451.0,0.00200015]
[1739604814574,0.42422333,97452.0,97451.0,0.00100015]
[1739604814783,0.42422333,97452.0,97451.0,0.00200015]
[1739604814973,0.43122333,97452.0,97451.0,0.00200015]
[1739604815680,0.53372698,97452.0,97451.0,0.00200015]
[1739604816081,0.43122333,97452.0,97451.0,0.00200015]
[1739604816614,0.75442333,97452.0,97451.0,0.00200015]
[1739604817792,0.153942,97439.0,97438.0,0.00015568]
[1739604818003,0.28836533,97439.0,97438.0,0.00015568]
[1739604819998,0.30236533,97439.0,97438.0,0.00015568]
[1739604821421,0.3229806,97439.0,97438.0,0.00015568]
[1739604822366,0.6461806,97439.0,97438.0,0.00015568]
[1739604846131,0.62556533,97439.0,97438.0,0.00015568]
[1739604876925,0.67176533,97439.0,97438.0,0.00015568]
[1739604897954,0.62556533,97439.0,97438.0,0.00015568]
[1739604906235,0.153974,97419.0,97418.0,0.07318168]
[1739604907497,0.153974,97419.0,97418.0,0.07518168]
[1739604907777,0.153974,97419.0,97418.0,0.07618168]
[1739604909348,0.153974,97419.0,97418.0,0.07318168]
[1739604909490,0.153974,97419.0,97418.0,0.07328818]
[1739604909714,0.167974,97419.0,97418.0,0.07328818]
[1739604911080,0.160974,97419.0,97418.0,0.07328818]
[1739604911293,0.167974,97419.0,97418.0,0.07328818]
[1739604911509,0.160974,97419.0,97418.0,0.07328818]
[1739604912578,0.153974,97419.0,97418.0,0.07328818]
[1739604912938,0.160974,97419.0,97418.0,0.07328818]
[1739604913357,0.153974,97419.0,97418.0,0.07328818]
[1739604913561,0.167974,97419.0,97418.0,0.07328818]
[1739604913911,0.160974,97419.0,97418.0,0.07328818]
[1739604914316,0.167974,97419.0,97418.0,0.07428818]
[1739604914491,0.160974,97419.0,97418.0,0.07428818]
[1739604915872,0.160974,97419.0,97418.0,0.07328818]
[1739604916055,0.160974,97419.0,97418.0,0.07428818]
[1739604916210,0.160974,97419.0,97418.0,0.0011065]
[1739604921478,0.16119766,97419.0,97418.0,0.0011065]
[1739604921879,0.19322473,97419.0,97418.0,0.0011065]
[1739604922085,0.16119766,97419.0,97418.0,0.0011065]
[1739604922289,0.1932247,97419.0,97418.0,0.0011065]
[1739604922812,0.34072835,97419.0,97418.0,0.0011065]
[1739604923266,0.66392835,97419.0,97418.0,0.0011065]
[1739604923831,0.66392835,97419.0,97418.0,0.0001065]
[1739604924436,0.65692835,97419.0,97418.0,0.0001065]
[1739604924881,0.66392835,97419.0,97418.0,0.0001065]
[1739604925115,0.67092835,97419.0,97418.0,0.0001065]
[1739604927979,0.69155398,97419.0,97418.0,0.0001065]
[1739604929271,0.62592835,97419.0,97418.0,0.0001065]
[1739604929895,0.59390131,97419.0,97418.0,0.0001065]
[1739604934774,0.49139766,97419.0,97418.0,0.0001065]
[1739604956521,0.52337869,97419.0,97418.0,0.0001065]
[1739604963707,0.53337869,97419.0,97418.0,0.0001065]
[1739604965163,0.53337869,97419.0,97418.0,0.0001065]
[1739604987977,0.37940469,97419.0,97418.0,0.0001065]
[1739604991653,0.05620469,97419.0,97418.0,0.0001065]
[1739604991848,0.02422366,97419.0,97418.0,0.2315065]
[1739604994563,0.02422366,97419.0,97418.0,0.0815065]
[1739605006734,0.02422366,97419.0,97418.0,0.0001065]
[1739605017694,0.01722366,97419.0,97418.0,0.0001065]
[1739605017981,0.01022366,97419.0,97418.0,0.0001065]
[1739605018184,0.02422366,97419.0,97418.0,0.0001065]
[1739605018686,0.01722366,97419.0,97418.0,0.0001065]
[1739605018884,0.01022366,97419.0,97418.0,0.0001065]
[1739605019090,0.01022366,97419.0,97418.0,0.0031065]
[1739605020155,0.01022366,97419.0,97418.0,0.0051065]
[1739605020355,0.01022366,97419.0,97418.0,0.0021065]
[1739605020560,0.01022366,97419.0,97418.0,0.1501065]
[1739605020804,0.01022366,97419.0,97418.0,0.2358065]
[1739605021208,0.01022366,97419.0,97418.0,0.2338065]
[1739605021602,0.01022366,97419.0,97418.0,0.2358065]
[1739605023389,0.01022366,97419.0,97418.0,0.2588065]
[1739605023796,0.01022366,97419.0,97418.0,0.36131015]
[1739605032842,0.01022366,97419.0,97418.0,0.36042015]
[1739605035537,0.01022366,97419.0,97418.0,0.36052665]
[1739605047844,0.01022366,97419.0,97418.0,0.27882665]
[1739605059319,0.01022366,97419.0,97418.0,0.0041065]
[1739605059529,0.08902366,97419.0,97418.0,0.0041065]
[1739605059748,0.13732366,97419.0,97418.0,0.0041065]
[1739605061361,0.13732366,97419.0,97418.0,0.0021065]
[1739605061619,0.13732366,97419.0,97418.0,0.0001065]
[1739605061788,0.13732366,97419.0,97418.0,0.0011065]
[1739605062390,0.13732366,97419.0,97418.0,0.0031065]
[1739605066686,0.13732366,97419.0,97418.0,0.0011065]
[1739605067092,0.14432366,97419.0,97418.0,0.0011065]
[1739605067294,0.14432366,97419.0,97418.0,0.0001065]
[1739605068148,0.14432366,97419.0,97418.0,0.0011065]
[1739605068551,0.13732366,97419.0,97418.0,0.0001065]
[1739605076499,0.01022366,97419.0,97418.0,0.0001065]
[1739605078158,0.01022366,97419.0,97418.0,0.00748144]
[1739605083567,0.01022366,97419.0,97418.0,0.0001065]
[1739605093837,0.01022366,97419.0,97418.0,0.00749542]
[1739605107685,0.01022366,97419.0,97418.0,0.15852182]
[1739605107886,0.01022366,97419.0,97418.0,0.28402547]
[1739605108074,0.01022366,97419.0,97418.0,0.28299907]
[1739605109041,0.01022366,97419.0,97418.0,0.28799907]
[1739605118258,0.01022366,97419.0,97418.0,0.28061015]
[1739605121956,0.01022366,97419.0,97418.0,0.28798401]
[1739605128253,0.01022366,97419.0,97418.0,0.28061015]
[1739605146881,0.01022366,97419.0,97418.0,0.1781065]
[1739605147090,0.01022366,97419.0,97418.0,0.1551065]
[1739605147297,0.01022366,97419.0,97418.0,0.0051065]
[1739605147513,0.08762366,97419.0,97418.0,0.0051065]
[1739605148394,0.13562366,97419.0,97418.0,0.0051065]
[1739605150308,0.13562366,97419.0,97418.0,0.0031065]
[1739605150708,0.13562366,97419.0,97418.0,0.0011065]
[1739605150974,0.13562366,97419.0,97418.0,0.0021065]
[1739605158046,0.13562366,97419.0,97418.0,0.0011065]
[1739605158248,0.13562366,97419.0,97418.0,0.0021065]
[1739605158521,0.13562366,97419.0,97418.0,0.0001065]
[1739605158737,0.13562366,97419.0,97418.0,0.0011065]
[1739605159272,0.13562366,97419.0,97418.0,0.0001065]
[1739605160712,0.13555938,97419.0,97418.0,0.0011065]
[1739605163162,0.05815938,97419.0,97418.0,0.0011065]
[1739605163357,0.01015938,97419.0,97418.0,0.0011065]
[1739605214415,0.01015938,97419.0,97418.0,0.0011065]
[1739605228872,0.01015938,97419.0,97417.0,0.1270061]
[1739605230165,0.01015938,97419.0,97417.0,0.1280061]
[1739605230662,0.01015938,97419.0,97417.0,0.1290061]
[1739605233260,0.01015938,97419.0,97417.0,0.1291126]
[1739605244821,0.01015938,97419.0,97418.0,0.15]
[1739605250530,0.01015938,97419.0,97418.0,0.18078119]
[1739605250766,0.01015938,97419.0,97418.0,0.20378119]
[1739605251024,0.01015938,97419.0,97418.0,0.21116152]
[1739605253004,0.01015938,97419.0,97418.0,0.20378119]
[1739605253491,0.01015938,97419.0,97418.0,0.173]
[1739605254938,0.01015938,97419.0,97418.0,0.2522]
[1739605256713,0.01015938,97419.0,97418.0,0.176]
[1739605257114,0.01015938,97419.0,97418.0,0.178]
[1739605258667,0.01015938,97419.0,97418.0,0.18537861]
[1739605260674,0.01015938,97419.0,97418.0,0.178]
[1739605265492,0.01015938,97419.0,97418.0,0.28153001]
[1739605265791,0.01015938,97419.0,97418.0,0.35920365]
[1739605266627,0.01015938,97419.0,97418.0,0.36357964]
[1739605267073,0.01015938,97419.0,97418.0,0.36157964]
[1739605267277,0.01015938,97419.0,97418.0,0.36857964]
[1739605267278,0.01115938,97419.0,97418.0,0.36857964]
[1739605268011,0.01115938,97419.0,97418.0,0.36120365]
[1739605268443,0.01015938,97419.0,97418.0,0.35820365]
[1739605268980,0.01115938,97419.0,97418.0,0.36320365]
[1739605269568,0.01115938,97419.0,97418.0,0.3841496]
[1739605270814,0.01115938,97419.0,97418.0,0.3915228]
[1739605272204,0.01115938,97419.0,97418.0,0.37057685]
[1739605273755,0.01115938,97419.0,97418.0,0.36320365]
[1739605276432,0.01115938,97419.0,97418.0,0.37057721]
[1739605277303,0.01115938,97419.0,97418.0,0.29187721]
[1739605282238,0.01115938,97419.0,97418.0,0.28450365]
[1739605282660,0.01115938,97419.0,97418.0,0.29187915]
[1739605284205,0.01115938,97419.0,97418.0,0.28450365]
[1739605294526,0.01115938,97419.0,97418.0,0.29188322]
[1739605309961,0.0827,97436.0,97435.0,0.303948]
[1739605310217,4.354e-05,97439.0,97436.0,0.303946]
[1739605310804,4.354e-05,97439.0,97438.0,0.15]
[1739605312281,0.00704354,97439.0,97438.0,0.15]
[1739605312481,4.354e-05,97439.0,97438.0,0.15]
[1739605312685,4.354e-05,97439.0,97438.0,0.151]
[1739605312860,0.00704354,97439.0,97438.0,0.151]
[1739605313693,0.01404354,97439.0,97438.0,0.152]
[1739605314241,0.0142672,97439.0,97438.0,0.152]
[1739605314465,0.0142672,97439.0,97438.0,0.175]
[1739605315378,0.0142672,97439.0,97438.0,0.165]
[1739605315583,0.0072672,97439.0,97438.0,0.164]
[1739605315819,0.0002672,97439.0,97438.0,0.16502618]
[1739605315984,0.0002672,97439.0,97438.0,0.16702618]
[1739605317990,0.0002672,97439.0,97438.0,0.16602618]
[1739605318402,0.0002672,97439.0,97438.0,0.16902618]
[1739605318643,0.0002672,97439.0,97438.0,0.16602618]
[1739605319003,0.0002672,97439.0,97438.0,0.16902618]
[1739605319250,0.0002672,97439.0,97438.0,0.16702618]
[1739605319682,0.0002672,97439.0,97438.0,0.17202618]
[1739605319972,0.0002672,97439.0,97438.0,0.27452982]
[1739605320202,0.0002672,97439.0,97438.0,0.26850365]
[1739605320532,0.0002672,97439.0,97438.0,0.27350365]
[1739605323335,0.0002672,97439.0,97438.0,0.34980365]
[1739605326328,0.0002672,97439.0,97438.0,5.16994365]
[1739605326785,0.0002672,97439.0,97438.0,5.17005015]
[1739605326990,0.0002672,97439.0,97438.0,5.16505015]
[1739605327462,0.0012672,97439.0,97438.0,5.17205015]
[1739605327922,0.0012672,97439.0,97438.0,5.16905015]
[1739605328156,0.0022672,97439.0,97438.0,5.17605015]
[1739605328377,0.0012672,97439.0,97438.0,5.16905015]
[1739605328815,0.0022672,97439.0,97438.0,5.17605015]
[1739605329044,0.0012672,97439.0,97438.0,5.16205015]
[1739605329273,0.0022672,97439.0,97438.0,5.16905015]
[1739605329493,0.0022672,97439.0,97438.0,5.17605015]
[1739605329701,0.0012672,97439.0,97438.0,0.39761015]
[1739605329921,0.0012672,97439.0,97438.0,5.16205015]
[1739605330191,0.0012672,97439.0,97438.0,5.16905015]
[1739605330918,0.0012672,97439.0,97438.0,5.49375015]
[1739605331120,0.0022672,97439.0,97438.0,5.50075015]
[1739605339763,0.0022672,97439.0,97438.0,5.45205015]
[1739605344338,0.0022672,97439.0,97438.0,5.37575015]
[1739605358957,0.0037472,97439.0,97438.0,5.37575015]
[1739605362454,0.0037472,97439.0,97438.0,0.60431015]
[1739605362654,0.0037472,97439.0,97438.0,5.37575015]
[1739605383593,0.0037472,97439.0,97438.0,0.60431015]
[1739605383793,0.0037472,97439.0,97438.0,5.37575015]
[1739605385742,0.0037472,97439.0,97438.0,3.96341015]
[1739605386144,0.0037472,97439.0,97438.0,3.95241015]
[1739605386393,0.0037472,97439.0,97438.0,3.68781015]
[1739605386749,0.0037472,97439.0,97438.0,2.93861015]
[1739605401869,0.0037472,97439.0,97438.0,2.76971015]
[1739605402072,0.0037472,97439.0,97438.0,0.11661015]
[1739605402179,0.0806472,97439.0,97438.0,0.11661015]
[1739605402398,0.0806472,97439.0,97438.0,0.0141065]
[1739605402601,0.2836892,97439.0,97438.0,0.0141065]
[1739605402801,0.2836892,97439.0,97438.0,0.0071065]
[1739605403232,0.2816892,97439.0,97438.0,0.0071065]
[1739605403614,0.2816892,97439.0,97438.0,0.0121065]
[1739605404254,0.2816892,97439.0,97438.0,0.0051065]
[1739605404461,0.2816892,97439.0,97438.0,0.0001065]
[1739605404962,0.2836892,97439.0,97438.0,0.0001065]
[1739605405820,0.2846892,97439.0,97438.0,0.0071065]
[1739605406142,0.2836892,97439.0,97438.0,0.0001065]
[1739605406547,0.2846892,97439.0,97438.0,0.0001065]
[1739605410160,0.1307472,97439.0,97438.0,0.0001065]
[1739605413089,0.1307472,97439.0,97438.0,0.1501065]
[1739605419782,0.0047472,97439.0,97438.0,0.27561015]
[1739605420554,0.0017472,97439.0,97438.0,0.27561015]
[1739605420797,0.0017472,97439.0,97438.0,0.27661015]
[1739605421923,0.0017472,97439.0,97438.0,0.27961015]
[1739605434940,0.0017472,97439.0,97438.0,5.05105015]
[1739605435724,0.0017472,97439.0,97438.0,5.04805015]
[1739605436106,0.0027472,97439.0,97438.0,5.05505015]
[1739605436647,0.0027472,97439.0,97438.0,5.05405015]
[1739605437030,0.0027472,97439.0,97438.0,5.05905015]
[1739605439306,0.0027472,97439.0,97438.0,5.06905015]
[1739605440652,0.0027472,97439.0,97438.0,5.39375015]
[1739605441569,2e-07,97439.0,97438.0,5.39375015]
[1739605441775,0.00022366,97447.0,97441.0,0.01]
[1739605441982,0.00022366,97447.0,97446.0,0.326931]
[1739605442197,0.00022366,97447.0,97446.0,5.20087465]
[1739605443656,0.00022366,97447.0,97446.0,5.20687465]
[1739605444557,0.00022366,97447.0,97446.0,5.21387465]
[1739605445718,0.00022366,97447.0,97446.0,0.44243465]
[1739605445868,0.00022366,97447.0,97446.0,5.21387465]
[1739605446476,0.00022366,97447.0,97446.0,5.53857465]
[1739605449164,0.00022366,97447.0,97446.0,5.54857465]
[1739605449566,0.00022366,97447.0,97446.0,5.62947465]
[1739605458754,0.00022366,97447.0,97446.0,5.62947465]
[1739605461451,0.00022366,97447.0,97446.0,6.17847465]
[1739605470158,0.00022366,97447.0,97446.0,6.09757465]
[1739605470537,0.00022366,97447.0,97446.0,6.11971799]
[1739605470735,0.00022366,97452.0,97451.0,0.01]
[1739605470897,0.00026721,97452.0,97451.0,5.21189254]
[1739605471120,0.00026721,97452.0,97451.0,5.21086665]
[1739605472514,0.00026721,97452.0,97451.0,5.22286665]
[1739605473306,0.00026721,97452.0,97451.0,5.54756665]
[1739605474678,0.00026721,97452.0,97451.0,5.56803478]
[1739605477655,0.00026721,97452.0,97451.0,0.79659478]
[1739605478078,0.00026721,97452.0,97451.0,5.56803478]
[1739605480981,0.00026721,97452.0,97451.0,5.57947478]
[1739605491752,0.00026721,97452.0,97451.0,5.54900665]
[1739605491962,0.08146721,97452.0,97451.0,1.86736665]
[1739605492327,0.08146721,97452.0,97451.0,1.77356665]
[1739605492527,0.08146721,97452.0,97451.0,1.56086665]
[1739605494043,0.00026721,97452.0,97451.0,1.56086665]
[1739605494383,0.00026721,97452.0,97451.0,0.77756665]
[1739605494712,0.00026721,97452.0,97451.0,2.38126665]
[1739605495258,0.00026721,97452.0,97451.0,2.01186665]
[1739605495500,0.00026721,97452.0,97451.0,1.92776665]
[1739605498383,0.00026721,97452.0,97451.0,1.93776665]
[1739605502443,0.00026721,97452.0,97451.0,1.92776665]
[1739605503175,0.00026721,97452.0,97451.0,1.07006665]
[1739605503383,0.00026721,97452.0,97451.0,1.07016665]
[1739605504937,0.00026721,97452.0,97451.0,0.77756665]
[1739605505214,0.00026721,97452.0,97451.0,5.54900665]
[1739605506957,0.00026721,97452.0,97451.0,2.82066665]
[1739605507165,0.00026721,97452.0,97451.0,2.56776665]
[1739605507365,0.00026721,97452.0,97451.0,0.77756665]
[1739605507696,0.00026721,97452.0,97451.0,1.18906665]
[1739605508736,0.00026721,97452.0,97451.0,1.15256665]
[1739605508962,0.00026721,97452.0,97451.0,0.77756665]
[1739605509174,0.00026721,97452.0,97451.0,1.13556665]
[1739605509413,0.00026721,97452.0,97451.0,0.77756665]
[1739605514388,0.00026721,97452.0,97451.0,0.85946665]
[1739605514617,0.00026721,97452.0,97451.0,6.22550031]
[1739605514618,2.1e-07,97452.0,97451.0,6.22550031]
[1739605514848,4e-05,97453.0,97452.0,4.95444]
[1739605515040,4e-05,97453.0,97452.0,5.06434365]
[1739605515255,4e-05,97453.0,97452.0,5.05694365]
[1739605515875,4e-05,97453.0,97452.0,4.05120365]
[1739605516255,4e-05,97453.0,97452.0,4.05820365]
[1739605517417,4e-05,97453.0,97452.0,4.06520365]
[1739605517867,4e-05,97453.0,97452.0,1.85190365]
[1739605518182,4e-05,97453.0,97452.0,1.39340365]
[1739605518794,4e-05,97453.0,97452.0,1.35800365]
[1739605518949,4e-05,97453.0,97452.0,0.44120365]
[1739605520222,4e-05,97453.0,97452.0,0.46420365]
[1739605523353,4e-05,97453.0,97452.0,0.61420365]
[1739605527548,4e-05,97453.0,97452.0,0.61431015]
[1739605574835,0.13204,97453.0,97452.0,0.61431015]
[1739605576775,0.13204,97453.0,97452.0,0.60031015]
[1739605577283,0.13204,97453.0,97452.0,0.61331015]
[1739605577493,0.13204,97453.0,97452.0,0.60731015]
[1739605577687,0.13204,97453.0,97452.0,0.60631015]
[1739605577904,0.13204,97453.0,97452.0,0.61331015]
[1739605586728,0.13204,97453.0,97452.0,0.44031015]
[1739605586943,0.13204,97453.0,97452.0,0.3378065]
[1739605587347,0.13204,97453.0,97452.0,0.4878065]
[1739605587537,0.13204,97453.0,97452.0,0.4748065]
[1739605587733,0.13204,97453.0,97452.0,0.1501065]
[1739605587897,0.13204,97453.0,97452.0,0.1631065]
[1739605588074,0.13204,97453.0,97452.0,0.1861065]
[1739605589078,0.13204,97453.0,97452.0,0.1731065]
[1739605589506,0.13204,97453.0,97452.0,0.1761065]
[1739605589707,0.13204,97453.0,97452.0,0.1751065]
[1739605589940,0.13204,97453.0,97452.0,0.1731065]
[1739605590142,0.13204,97453.0,97452.0,0.1761065]
[1739605592048,0.13204,97453.0,97452.0,0.1741065]
[1739605599978,0.13204,97453.0,97452.0,0.0241065]
[1739605606286,0.13204,97453.0,97452.0,0.0011065]
[1739605607388,0.13204,97453.0,97452.0,0.0001065]
[1739605608294,0.13304,97453.0,97452.0,0.0001065]
[1739605610691,0.13304,97453.0,97452.0,0.0231065]
[1739605614723,0.23554365,97453.0,97452.0,0.0001065]
[1739605620461,0.26744715,97453.0,97452.0,0.0001065]
[1739605634904,0.23554365,97453.0,97452.0,0.0001065]
[1739605635293,0.26746796,97453.0,97452.0,0.0001065]
[1739605635494,0.23554365,97453.0,97452.0,0.0001065]
[1739605636461,0.26747398,97453.0,97452.0,0.0001065]
[1739605654490,0.08237033,97453.0,97452.0,0.0231065]
[1739605654701,0.00104,97453.0,97452.0,0.0231065]
[1739605665875,0.00104,97453.0,97452.0,0.1731065]
[1739605666867,0.00104,97453.0,97452.0,0.0231065]
[1739605691963,0.033043,97453.0,97452.0,0.0231065]
[1739605695177,0.00104,97453.0,97452.0,0.0231065]
[1739605697879,0.03304741,97453.0,97452.0,0.0231065]
[1739605702662,0.00104,97453.0,97452.0,0.0231065]
[1739605707502,0.00104,97453.0,97452.0,0.0231065]
[1739605730000,0.00104,97453.0,97452.0,0.1731065]
[1739605732776,0.00104,97453.0,97452.0,0.0231065]
[1739605736622,0.00104,97453.0,97452.0,0.1731065]
[1739605741111,0.00104,97453.0,97452.0,0.0231065]
[1739605749975,0.08184,97453.0,97452.0,0.0231065]
[1739605750185,0.13064,97453.0,97452.0,0.0231065]
[1739605755314,0.04984,97453.0,97452.0,0.0231065]
[1739605781147,0.08182328,97453.0,97452.0,0.0231065]
[1739605786787,0.03302328,97453.0,97452.0,0.0231065]
[1739605806495,0.00104,97453.0,97452.0,0.0231065]
[1739605813150,0.03304153,97453.0,97452.0,0.0231065]
[1739605813355,0.11404153,97453.0,97452.0,0.0231065]
[1739605824267,0.11404153,97453.0,97452.0,0.0001065]
[1739605824530,0.26264518,97453.0,97452.0,0.0001065]
[1739605825548,0.26164518,97453.0,97452.0,0.0001065]
[1739605825800,0.26164518,97453.0,97452.0,0.0021065]
[1739605825951,0.26364518,97453.0,97452.0,0.0021065]
[1739605826818,0.58684518,97453.0,97452.0,0.0021065]
[1739605833167,0.50584518,97453.0,97452.0,0.0021065]
[1739605845476,0.35724153,97453.0,97452.0,0.0251065]
[1739605845721,0.32524,97453.0,97452.0,0.0251065]
[1739605850720,0.00204,97453.0,97452.0,0.0251065]
[1739605862740,0.03398407,97453.0,97452.0,0.0251065]
[1739605862964,0.13648772,97453.0,97452.0,0.0021065]
[1739605868040,0.15369992,97453.0,97452.0,0.0021065]
[1739605875114,0.18125284,97453.0,97452.0,0.0021065]
[1739605875754,0.25735284,97453.0,97452.0,0.0021065]
[1739605875965,0.153921,97452.0,97451.0,0.01099698]
[1739605876172,0.25642465,97452.0,97451.0,0.01099698]
[1739605876400,0.28836872,97452.0,97451.0,0.01099698]
[1739605876640,0.73746872,97452.0,97451.0,0.01099698]
[1739605877079,0.75468092,97452.0,97451.0,0.01099698]
[1739605877532,0.81661705,97452.0,97451.0,0.01099698]
[1739605877798,0.75468092,97452.0,97451.0,0.01099698]
[1739605878012,0.75668092,97452.0,97451.0,0.01199698]
[1739605878203,0.75668092,97452.0,97451.0,0.01299698]